Cogmind - Beta 12 @@@ ROGUE MODE // 2023.11.12 @ 10:59:16 Player: epb Result: Destroyed by G-47 Trooper with Particle Gun Performance ------------- Evolutions (2) 1000 Regions Visited (4) 800 Robots Destroyed (47) 235 Value Destroyed (962) 962 Prototype IDs (2) 40 Alien Tech Used (0) 0 Bonus (0) 0 TOTAL SCORE: 3037 Bonus ------- None Cogmind --------- Core Integrity 0/550 Matter 142/300 Energy 25/100 System Corruption 0% Temperature Cool (44) Movement Core (250) Ox4 Location -8/Materials Parts ------- > --- POWER (1) -------- (None) > --- PROPULSION (2) --- (None) > --- UTILITY (3) ------ Targeting Computer > --- WEAPON (5) ------- Heavy EM Pulse Gun Flak Cannon Flak Cannon > --- INVENTORY (5) ---- (None) Peak State ------------ > --- POWER ------------ Cooled Ion Engine > --- PROPULSION ------- Improved Aluminum Leg Improved Aluminum Leg > --- UTILITY ---------- Signal Interpreter Targeting Computer > --- WEAPON ----------- Beam Rifle Enhanced Autogun Enhanced Autogun Light Cannon > --- INVENTORY -------- Improved Aluminum Leg Wheel Compact Wheel ECM Suite [Rating: 20] Favorites ----------- Power Ion Engine Engine Ion Engine Propulsion Aluminum Leg Leg Aluminum Leg Wheel Compact Wheel Utility Targeting Computer Device ECM Suite Processor Targeting Computer Hackware Hacking Suite Weapon Enhanced Autogun Energy Gun Small Laser Ballistic Gun Enhanced Autogun Ballistic Cannon Light Cannon Build | -11 -10 -10 -9 -8 ------- Run | Jun Mat Min Mat Mat Slots Evolved 4 | . . . 2 2 Power . | . . . . . Propulsion . | . . . . . Utility 1 | . . . . 1 Weapon 3 | . . . 2 1 Parts Attached 40 | 7 6 5 14 8 Power 5 | 1 . 1 3 . Engine 5 | 1 . 1 3 . Core . | . . . . . Reactor . | . . . . . Propulsion 12 | 2 2 . 6 2 Treads . | . . . . . Leg 10 | 2 2 . 4 2 Wheel 2 | . . . 2 . Hover . | . . . . . Flight . | . . . . . Utility 7 | 2 2 1 . 2 Device 4 | 2 1 . . 1 Storage . | . . . . . Processor 2 | . 1 1 . . Hackware 1 | . . . . 1 Protection . | . . . . . Artifact . | . . . . . Weapon 16 | 2 2 3 5 4 Energy Gun 5 | 1 . . 2 2 Energy Cannon . | . . . . . Ballistic Gun 8 | 1 2 2 3 . Ballistic Cannon 3 | . . 1 . 2 Launcher . | . . . . . Special Weapon . | . . . . . Impact Weapon . | . . . . . Slashing Weapon . | . . . . . Piercing Weapon . | . . . . . Special Melee Weapon . | . . . . . Unidentified Prototypes 2 | . . . 2 . Parts Lost 9 | . . . 5 4 Power 1 | . . . 1 . Propulsion 4 | . . . 2 2 Utility 2 | . . . 1 1 Weapon 2 | . . . 1 1 Highest Loss Streak 4 | . . . 4 4 To Critical Strikes . | . . . . . Average Slot Usage (%) 90 | . 100 100 93 33 Engine 11 | . 14 14 10 . Leg 23 | . 28 28 20 9 Device 7 | . 14 13 . 4 Processor 16 | . 13 14 21 9 Energy Gun 5 | . 7 . 7 5 Ballistic Gun 18 | . 20 20 20 . Ballistic Cannon 6 | . . 7 10 1 Naked Turns . | . . . . . Heaviest Build 20 | 10 12 12 20 15 Greatest Support 26 | 20 20 20 26 20 Greatest Overweight (x) 4 | . . . . 4 Average Overweight (x) . | . . . . . Largest Inventory Capacity 5 | 5 5 5 5 5 Average Capacity 5 | 5 5 5 5 5 Most Carried 5 | 4 5 5 5 5 Average Carried 3 | 2 4 4 3 . Final Capacity 5 | 5 5 5 5 5 Final Carried 5 | 3 5 5 4 . Class Distribution -------------------- 66% | Mutant 33% | Gunner Dominant Class ---------------- Mutant | -10/Materials Mutant | -10/Mines Gunner | -9/Materials Mutant | -8/Materials Resources | -11 -10 -10 -9 -8 ----------- Run | Jun Mat Min Mat Mat Matter Collected 991 | 294 90 91 516 . Remotely 164 | 164 . . . . Salvage Created 1334 | 156 244 21 823 90 Parts 107 | 15 18 1 68 5 Haulers Intercepted 2 | . . . 2 . Recyclers Shooed . | . . . . . Parts Field Recycled . | . . . . . Retrieved Matter . | . . . . . Parts Self-Destructed . | . . . . . Prevented . | . . . . . Kills | -11 -10 -10 -9 -8 ------- Run | Jun Mat Min Mat Mat Combat Hostiles Destroyed 25 | . 10 2 11 2 Guns 19 | . 10 2 7 . Cannons 6 | . . . 4 2 Classes Destroyed 10 | 2 3 . 5 . Worker 3 | . 1 . 2 . Builder 2 | . . . 2 . Tunneler 5 | 4 . . 1 . Hauler 2 | . . . 2 . Recycler 2 | 1 . . 1 . Operator 4 | . . . 3 1 Watcher 4 | . . . 4 . Swarmer 8 | . 6 2 . . Grunt 14 | . 4 . 9 1 Sentry 3 | . . . 2 1 Best Kill Streak 5 | 5 3 2 5 3 Combat Bots Only 3 | . 3 2 3 2 Max Kills in Single Turn 2 | 1 1 1 2 1 Gunslinging . | . . . . . Exploded . | . . . . . Melee . | . . . . . Uniques/NPCs Destroyed . | . . . . . Combat | -11 -10 -10 -9 -8 -------- Run | Jun Mat Min Mat Mat Damage Taken 2117 | . 345 32 861 879 Core 891 | . 80 . 253 558 Absorbed by Shields . | . . . . . Core Remaining (%) 68 | 100 . 68 36 . Volleys Fired 84 | 8 23 3 45 5 Largest 4 | 2 2 2 4 3 Hottest 141 | 60 60 43 141 133 Shots Fired 219 | 16 46 6 140 11 Gun 176 | 16 46 6 103 5 Cannon 43 | . . . 37 6 Launcher . | . . . . . Special . | . . . . . Kinetic 161 | 8 36 6 105 6 Thermal 33 | 8 10 . 15 . Explosive . | . . . . . Electromagnetic 25 | . . . 20 5 Robot Hit Streak 19 | 4 5 4 19 5 Robot Miss Streak 3 | 2 3 2 3 3 Penetration Max . | . . . . . Secondary Targets . | . . . . . Shots Hit Robots 127 | 9 26 4 79 9 Core Hits 72 | 6 17 2 33 14 Critical Kills 1 | . 1 . . . Critical Parts Destroyed 1 | . 1 . . . Critical Strikes 7 | . 2 . 5 . Burn 1 | . . . 1 . Destroy 2 | . 2 . . . Blast 4 | . . . 4 . Melee Attacks . | . . . . . Impact . | . . . . . Slashing . | . . . . . Piercing . | . . . . . Sneak Attacks . | . . . . . Combat Hostiles . | . . . . . Follow-up Attacks . | . . . . . Damage Inflicted 2180 | 113 409 54 1378 226 Guns 1627 | 113 409 54 1006 45 Cannons 541 | . . . 372 169 Explosions . | . . . . . Melee . | . . . . . Ramming 12 | . . . . 12 Kinetic 1616 | 46 342 54 1005 169 Thermal 276 | 67 67 . 142 . Explosive . | . . . . . Electromagnetic 276 | . . . 231 45 Impact . | . . . . . Slashing . | . . . . . Piercing . | . . . . . Highest Corruption . | . . . . . Average Corruption . | . . . . . Corruption Purged . | . . . . . Corruption Blocked . | . . . . . Overload Shots . | . . . . . Overflow Damage 6 | . . . 6 . Projectiles 6 | . . . 6 . Explosions . | . . . . . Melee . | . . . . . Knockbacks 3 | . . . 1 2 Impact . | . . . . . Kinetic 3 | . . . 1 2 Secondary . | . . . . . Self-Inflicted Damage 5 | . . . . 5 Shots . | . . . . . Rammed 4 | . . . . 4 Targets Rammed 4 | . . . . 4 Kicked . | . . . . . Crushed . | . . . . . Highest Temperature 568 | . 42 . 568 57 Average Temperature 159 | . 20 . 189 25 Received Heat Transfer 975 | . 162 . 399 414 Effects 16 | . . . 16 . Shutdowns 2 | . . . 2 . Interference 5 | . . . 5 . Short Circuit 3 | . . . 3 . Damage (minor) 3 | . . . 3 . Damage (major) 3 | . . . 3 . Siege Activations . | . . . . . Robots Corrupted . | . . . . . Combat Hostiles . | . . . . . Parts Fried . | . . . . . Impact Corruptions . | . . . . . Robots Melted . | . . . . . Combat Hostiles . | . . . . . Parts Melted . | . . . . . Heat Transferred 744 | 150 150 . 444 . Parts Sabotaged . | . . . . . Parts Stolen . | . . . . . Parts Stripped . | . . . . . Power Chain Reactions . | . . . . . Missiles Intercepted . | . . . . . Alert | -11 -10 -10 -9 -8 ------- Run | Jun Mat Min Mat Mat Peak Influence 392 | 25 312 114 392 208 Initial 148 | . 16 49 44 148 Average 150 | 10 146 104 203 142 Maximum Alert Level 1 | . 1 . 1 1 Low Security (%) 73 | 100 66 100 51 97 Level 1 26 | . 33 . 48 2 Level 2 . | . . . . . Level 3 . | . . . . . Level 4 . | . . . . . Level 5 . | . . . . . High Security . | . . . . . Max Security . | . . . . . Squads Dispatched 3 | . . . 2 1 Investigation 1 | . . . 1 . Extermination . | . . . . . Reinforcement 2 | . . . 1 1 Assault . | . . . . . Garrison . | . . . . . Intercept . | . . . . . Searches Triggered . | . . . . . Construction Impeded . | . . . . . Haulers Reinforced . | . . . . . Active Scanning Responses . | . . . . . Cargo Convoy Interrupts . | . . . . . Stealth | -11 -10 -10 -9 -8 --------- Run | Jun Mat Min Mat Mat Distress Signals 4 | . 2 . 1 1 Communications Jammed . | . . . . . Distress Signals . | . . . . . Times Spotted 58 | . 20 5 20 13 Peak Tracking Total 12 | . 5 3 4 12 Tactical Retreats 5 | . 2 1 1 1 Traps | -11 -10 -10 -9 -8 ------- Run | Jun Mat Min Mat Mat Traps Triggered . | . . . . . Indirectly . | . . . . . Trap Hack Attempts . | . . . . . Triggered . | . . . . . Disarmed . | . . . . . Reprogrammed . | . . . . . Reused . | . . . . . Traps Extracted . | . . . . . Installed . | . . . . . Triggered . | . . . . . Machines | -11 -10 -10 -9 -8 ---------- Run | Jun Mat Min Mat Mat Machines Disabled 4 | . . . 4 . Max in Single Turn 2 | . . . 2 . Machines Repaired . | . . . . . Machines Sabotaged . | . . . . . Overloaded Fab Kills . | . . . . . Hacking | -11 -10 -10 -9 -8 --------- Run | Jun Mat Min Mat Mat Machines Accessed 6 | . 2 . 4 . Terminals 5 | . 2 . 3 . Fabricators . | . . . . . Repair Stations . | . . . . . Recycling Units 1 | . . . 1 . Scanalyzers . | . . . . . Garrison Access . | . . . . . Total Hacks 13 | . 4 . 9 . Successful 5 | . 1 . 4 . Failed 8 | . 3 . 5 . Catastrophic 2 | . 1 . 1 . Database Lockouts . | . . . . . Manual . | . . . . . Terminals 11 | . 4 . 7 . Fabricators . | . . . . . Repair Stations . | . . . . . Recycling Units 2 | . . . 2 . Scanalyzers . | . . . . . Garrison Access . | . . . . . Terminal Hacks 4 | . 1 . 3 . Record 1 | . . . 1 . Alert Level 1 | . 1 . . . Surveillance Status 1 | . . . 1 . Hauler Manifests 1 | . . . 1 . Fabricator Hacks . | . . . . . Repair Station Hacks . | . . . . . Recycling Unit Hacks 1 | . . . 1 . Report Inventory 1 | . . . 1 . Scanalyzer . | . . . . . Garrison Access Hacks . | . . . . . Unauthorized Hacks . | . . . . . Terminals . | . . . . . Fabricators . | . . . . . Repair Stations . | . . . . . Recycling Units . | . . . . . Scanalyzers . | . . . . . Garrison Access . | . . . . . Data Cores Recovered 2 | . . . 2 . Used 1 | . . . 1 . Hacking Detections 4 | . 2 . 2 . Full Trace Events 1 | . . . 1 . Feedback Events . | . . . . . Feedback Blocked . | . . . . . Robot Schematics Acquired . | . . . . . Robots Built . | . . . . . Authchips . | . . . . . Time . | . . . . . Total Robot Build Rating . | . . . . . Part Schematics Acquired . | . . . . . Parts Built . | . . . . . Authchips . | . . . . . Time . | . . . . . Total Part Build Rating . | . . . . . Parts Repaired . | . . . . . Time . | . . . . . Parts Recycled . | . . . . . Recycled Matter . | . . . . . Retrieved Matter . | . . . . . Retrieved Components . | . . . . . Parts Scanalyzed . | . . . . . Part Schematics Acquired . | . . . . . Parts Damaged . | . . . . . Bothacking | -11 -10 -10 -9 -8 ------------ Run | Jun Mat Min Mat Mat Used RIF Installer . | . . . . . Robots Hacked . | . . . . . Non-combat . | . . . . . Combat . | . . . . . Robot Hacks Applied . | . . . . . Relay Couplers Released . | . . . . . Fabnet Peak Effective % . | . . . . . Robots Rewired . | . . . . . Allies Hacked . | . . . . . Hacks Repelled . | . . . . . Allies | -11 -10 -10 -9 -8 -------- Run | Jun Mat Min Mat Mat Total Allies . | . . . . . Largest Group . | . . . . . Highest-Rated Group . | . . . . . Highest-Rated Ally . | . . . . . Total Orders . | . . . . . Ally Attacks . | . . . . . Total Damage . | . . . . . Kills . | . . . . . Allies Corrupted . | . . . . . Allies Melted . | . . . . . Intel | -11 -10 -10 -9 -8 ------- Run | Jun Mat Min Mat Mat Robot Analysis Total . | . . . . . Derelict Logs Recovered 1 | . . 1 . . Drone Launches . | . . . . . Drone Recoveries . | . . . . . Exploration | -11 -10 -10 -9 -8 ------------- Run | Jun Mat Min Mat Mat Turns Passed 1836 | 119 441 394 706 176 Spaces Moved 1249 | 73 295 312 459 110 Core 125 | 10 . . 6 109 Treads . | . . . . . Legs 1093 | 63 295 312 422 1 Wheels 31 | . . . 31 . Hover . | . . . . . Flight . | . . . . . Fastest Speed 50 | 50 120 120 50 50 Average Speed 112 | 110 120 120 117 53 Slowest Speed 250 | 120 120 120 120 250 Overloaded Moves . | . . . . . Propulsion Burnouts . | . . . . . Robots Hopped . | . . . . . Cave-ins Triggered . | . . . . . Exploration Rate (%) 32 | 5 44 66 34 14 Regions Visited 4 Branch Regions 1 Pre-discovered Areas 1 | . . 1 . . Known Exits Taken 1 | . . 1 . . Unknown Exits Taken 3 | 1 1 . 1 . Scrap Searched 1 | . . 1 . . Spaces Dug . | . . . . . Terrain Destroyed . | . . . . . Melee . | . . . . . Projectile . | . . . . . AOE . | . . . . . Terrain Rammed . | . . . . . Walls Destroyed . | . . . . . Machines Disabled . | . . . . . Actions | -11 -10 -10 -9 -8 --------- Run | Jun Mat Min Mat Mat Total 1530 | 93 336 324 558 219 Wait 99 | . . . 12 87 Move 1245 | 72 294 311 458 110 Hop . | . . . . . Pick Up 33 | 6 7 2 14 4 Fast Attach 6 | 4 1 1 . . Attach 19 | 3 1 . 7 8 Detach . | . . . . . Swap 15 | . 4 4 7 . Drop 25 | . 6 3 15 1 Fire 84 | 8 23 3 45 5 Melee . | . . . . . Ram 4 | . . . . 4 Kick . | . . . . . Crush . | . . . . . Escape Stasis . | . . . . . Rewire . | . . . . . Trap . | . . . . . Miscellaneous . | . . . . . Route ------- -11/Junkyard -10/Materials -10/Mines -9/Materials -8/Materials History --------- Turn | Location | Event 3 | -11/Junkyard | Discovered new exit (range 15) 120 | -11/Junkyard | Entered Materials 204 | -10/Materials | Discovered new exit (range 15) 315 | -10/Materials | Build established: Mutant 561 | -10/Materials | Entered Mines 604 | -10/Mines | Learned location of Zion (-6) 717 | -10/Mines | Joined a pair of Derelicts in attacking an 0b10 outpost 905 | -10/Mines | Discovered new exit (range 6) 947 | -10/Mines | Identified exit to Materials 955 | -10/Mines | Entered Materials 955 | -9/Materials | Evolved 2 slots: Weapon x2 1434 | -9/Materials | Discovered new exit (range 12) 1549 | -9/Materials | Build established: Gunner 1636 | -9/Materials | Core integrity fell below 50% 1661 | -9/Materials | Entered another Materials area 1661 | -8/Materials | Evolved 2 slots: Utility x1, Weapon x1 1686 | -8/Materials | Lost 4 parts (1p2n1u) 1783 | -8/Materials | Core integrity fell below 50% 1793 | -8/Materials | Lost 4 parts (2n1u1w) 1812 | -8/Materials | Core integrity fell below 20% 1837 | -8/Materials | Destroyed by G-47 Trooper with Particle Gun Last Messages --------------- T-07 Excavator is excavating. K-01 Serf collects debris. Slammed into A-02 Transporter. Slammed into Y-45 Defender. Slammed into A-02 Transporter. Acquired Hvy. EM Pulse Gun. O-16 Technician: "IFF HANDSHAKE FAILED. SECURING TERMINAL." Acquired Flak Cannon. Critical hit (Burn: +37). Y-45 Defender destroyed. O-16 Technician uses terminal to summon reinforcements. ALERT: Hostiles spotted, dispatching reinforcements to Terminal M001. O-16 Technician locks terminal. O-16 Technician destroyed. Critical hit (Burn: +37). Acquired Flak Cannon. G-47 Trooper knocked back. [Achievement: More Dakka Please] G-47 Trooper knocked back. G-47 Trooper destroyed. Map ----- +----------------------------------------------------+ | ?????????????????????????????????????????????????? | | ?????????????????????????????????????????????????? | | ?????????????????????????????????????????????????? | | ?????????????????????????????????????????????????? | | ?????????????????????????????????????????????????? | | ?????????????????????????????????????????????????? | | ?????????????????????????????????????????????????? | | ?????????????????????????????????????????????????? | | ?????????????????????????????????????????????????? | | ?????????????????????????????????????????????????? | | ?????????????????????????????????????????????????? | | ?????????????????????????????????????????????????? | | ?????????????????????????????????????????????????? | | ?????????????????????????????????????????????????? | | ?????????????????????????????????????????????????? | | ?????????????????????????????????????????????????? | | ?????????????????????????????????????????????????? | | ?????????????????????????????????????????????????? | | ????????????????????????##########???????????????? | | ????????????????????????# #???????????????? | | ????????????????????????# T #???????????????? | | ????????????????????????# % #???????????????? | | ????????????????????????# ! ! #???????????????? | | ????????????????????????# g #???????????????? | | ????????????????????????# ] """ #???????????????? | | ???????????????###??????#@ """ #???????????????? | | ?????????????? ????##%! g""" #???????????????? | | ??????????????# ???# ==gl% #???????????????? | | ??????????????# #??######+########+####??????? | | ??????????????# ####### ????? | | ?????????????## ]] ????? | | ???????????? ]] ????? | | ????????????????#!! ]] ############+?????? | | ?????????????####!! #?????????????????? | | ?????????????#! #?????????????????? | | ????????????#! #?????????????????? | | ????????????#! #?????????????????? | | ????????????#! #?????????????????? | | ????????????#! #?????????????????? | | ?????????????#! ######### #?????????????????? | | ????????????????????????# #?????????????????? | | ????????????????????????#+## +?????????????????? | | ######?????????????????????# #########?????????? | | #????????????????????## ## #?????????? | | #????????????????????# # #?????????? | | ?????????????????????# # #?????????? | | ?????????????????????+ / #?????????? | | ! ?????????????????????# # #?????????? | | # #?#???????????????????# # #?????????? | | # # ????????????????????### ###+######?????????? | +----------------------------------------------------+ Best States ------------- Heat Dissipation 31 Energy Generation 14 Energy Capacity 280 Matter Stores 300 Matter Capacity 300 Sight Range 16 Terrain Scan Range 16 Terrain Scan Density 10 ECM Strength 1 Evasion (%) 55 Targeting Accuracy 5 Offensive Hacking 10 Item Schematics ----------------- None Robot Schematics ------------------ None Fabricated ------------ Nothing Alien Tech Used ----------------- None Achievements -------------- Dynamic Key More Dakka Please Challenges ------------ None Game ------ Seed NuclearStormWeb Manual? 0 Play Time 00:28:46 Cumulative 8.6 hours Start 2023.11.12 @ 10:31:13 End 2023.11.12 @ 10:59:16 Sessions 1 Manual Loads 0 Difficulty Rogue Special Mode None Game No. 24 Rogue 24 Adventurer 0 Explorer 0 Win Type - Total 0 Types 0/0/0/0/0/0/0/0/0 Lore% 7 Gallery% 15 Achievement% 13 Wizard Run 0 Options --------- ASCII 0 Keyboard 0 Movement Arrows Keybinds 0 Fullscreen 2 Font 14/TerminusBold Map View 72x54 Tactical HUD 0 Map Filters NONE Filters NONE Steam X RUN: e4185005-b380-4d29-bca1-0cfb100d694f